bitfinex-derivatives/quotes_SOLF0:USTF0_20251210
["timestamp","ask_amount","ask_price","bid_price","bid_amount"]
[1765399435875,99.4917,140.69,140.6,3.22]
[1765399436076,6.3974,140.66,140.6,3.22]
[1765399436275,6.3974,140.66,140.57,66.641]
[1765399436276,0.04485303,140.64,140.63,3.22]
[1765399437970,0.00485303,140.64,140.63,3.22]
[1765399442177,0.00485303,140.64,140.62,0.04789412]
[1765399442372,2.26427938,140.63,140.62,0.04789412]
[1765399442576,0.00485303,140.64,140.62,3.26789412]
[1765399442782,2.26427938,140.71,140.63,3.22]
[1765399442975,2.26427938,140.71,140.65,3.22]
[1765399443171,6.396,140.69,140.65,3.22]
[1765399443373,2.26427938,140.71,140.65,3.22]
[1765399443572,99.4551,140.75,140.65,3.22]
[1765399443573,2.26427938,140.73,140.65,3.22]
[1765399443881,0.05252536,140.7,140.69,3.22]
[1765399444288,99.4551,140.75,140.69,3.22]
[1765399444289,2.26427938,140.75,140.69,3.22]
[1765399444784,104.81440445,140.78,140.69,3.22]
[1765399445175,0.05105616,140.74,140.72,0.0532739]
[1765399445983,6.44465616,140.74,140.72,0.0532739]
[1765399446980,6.3949,140.71,140.69,3.22]
[1765399447370,99.4695,140.73,140.65,3.0]
[1765399447575,6.396,140.69,140.65,3.0]
[1765399448078,0.0486418,140.68,140.66,3.04610442]
[1765399448480,6.4450418,140.68,140.66,0.04610442]
[1765399449179,0.0486418,140.68,140.66,3.04610442]
[1765399453082,6.3953,140.71,140.66,3.04610442]
[1765399453484,6.3943,140.73,140.66,3.04610442]
[1765399453684,104.82210445,140.77,140.66,3.0]
[1765399454080,0.04947285,140.73,140.7,3.34432474]
[1765399454474,5.38500445,140.8,140.7,3.34432474]
[1765399454683,5.38500445,140.8,140.7,3.29]
[1765399455287,6.3925,140.77,140.71,3.29]
[1765399455489,0.04759175,140.75,140.74,3.29]
[1765399456884,0.04759175,140.75,140.73,0.05312441]
[1765399457780,6.44079175,140.75,140.73,0.05312441]
[1765399460286,6.44079175,140.75,140.67,3.29]
[1765399460287,104.84210445,140.74,140.67,3.29]
[1765399461292,0.0488949,140.72,140.69,0.04519711]
[1765399461885,0.0488949,140.72,140.69,3.33519711]
[1765399462089,0.0488949,140.72,140.69,9.67672298]
[1765399462394,0.0488949,140.72,140.7,3.29]
[1765399463397,0.0488949,140.72,140.69,9.67672298]
[1765399463586,0.0488949,140.72,140.69,3.33519711]
[1765399463888,0.0488949,140.72,140.69,0.04519711]
[1765399464291,6.395,140.71,140.69,0.04519711]
[1765399465588,6.3969,140.67,140.65,60.26]
[1765399465790,6.3969,140.67,140.64,3.29]
[1765399466189,6.3969,140.67,140.64,9.63152587]
[1765399466587,6.44668623,140.67,140.64,9.68075774]
[1765399466992,0.04978623,140.67,140.65,3.29]
[1765399467184,0.04978623,140.67,140.65,9.63152587]
[1765399467695,0.04978623,140.67,140.65,3.29]
[1765399468086,0.04978623,140.67,140.65,9.63152587]
[1765399468994,6.44658623,140.67,140.64,9.68075774]
[1765399469596,6.3975,140.66,140.64,3.33923187]
[1765399469889,0.04978623,140.67,140.64,3.33923187]
[1765399470095,6.44678623,140.67,140.64,3.33923187]
[1765399470479,0.04978623,140.67,140.64,3.33923187]
[1765399470681,0.04978623,140.67,140.64,9.68075774]
[1765399470986,0.04978623,140.67,140.65,3.29]
[1765399471594,0.04978623,140.67,140.65,9.63152587]
[1765399471797,0.04978623,140.67,140.66,3.29]
[1765399474393,6.3947,140.72,140.67,3.08]
[1765399474589,6.3947,140.72,140.68,3.08]
[1765399474892,6.3947,140.72,140.69,3.08]
[1765399475294,0.05431199,140.72,140.7,3.08]
[1765399477897,6.44891199,140.72,140.7,3.08]
[1765399478396,0.05431199,140.72,140.7,3.08]
[1765399480098,0.05431199,140.72,140.7,9.49856063]
[1765399480895,0.05431199,140.72,140.71,3.08]
[1765399482408,99.4339,140.78,140.72,3.08]
[1765399483300,6.3937,140.74,140.72,3.08]
[1765399483495,6.44810446,140.74,140.72,3.12988654]
[1765399483803,0.05440446,140.74,140.72,3.12988654]
[1765399484496,6.44810446,140.74,140.72,3.12988654]
[1765399485400,6.44810446,140.74,140.72,0.04988654]
[1765399495903,6.394,140.73,140.72,0.04988654]
[1765399500813,6.3963,140.68,140.66,2.16197]
[1765399501018,15.77958895,140.68,140.66,7e-05]
[1765399501513,6.3986,140.63,140.6,11.57923]
[1765399501707,6.3986,140.63,140.58,12.56347341]
[1765399501708,99.5355,140.63,140.58,8.49923]
[1765399501915,108.92748895,140.62,140.6,0.05411743]
[1765399502515,0.05257973,140.63,140.6,3.13411743]
[1765399502905,0.05257973,140.63,140.6,0.05411743]
[1765399503912,6.3994,140.62,140.6,0.05411743]
[1765399504112,15.78268895,140.62,140.6,0.05411743]
[1765399505022,6.3994,140.62,140.6,0.05411743]
[1765399505714,15.78268895,140.62,140.6,0.05411743]
[1765399506119,59.86,140.61,140.6,0.05411743]
[1765399506415,6.4005,140.59,140.53,3.24]
[1765399506820,66.2595,140.61,140.53,3.24]
[1765399507019,6.3995,140.61,140.54,3.24]
[1765399507414,0.05210648,140.59,140.57,3.24]
[1765399507618,108.88288895,140.68,140.57,3.24]
[1765399507811,168.74288895,140.68,140.57,3.24]
[1765399508217,59.86,140.68,140.58,8.49923]
[1765399508423,99.4941,140.69,140.6,3.24]
[1765399508620,0.04872371,140.66,140.64,3.24]
[1765399509123,0.04872371,140.66,140.63,3.28691351]
[1765399511216,0.04872371,140.66,140.63,0.04691351]
[1765399511418,6.3972,140.65,140.63,0.04691351]
[1765399512211,0.04872371,140.66,140.63,3.28691351]
[1765399513120,6.44542371,140.66,140.63,3.28691351]
[1765399513326,0.04872371,140.66,140.63,3.28691351]
[1765399513525,99.55482371,140.66,140.63,0.04691351]
[1765399514327,6.3971,140.65,140.63,0.04691351]
[1765399514515,99.5194,140.64,140.57,3.24]
[1765399515024,99.5261,140.63,140.57,3.24]
[1765399515223,99.5465,140.6,140.54,3.24]
[1765399515526,0.04573027,140.58,140.56,3.2916152]
[1765399517019,6.44603027,140.58,140.56,3.2916152]
[1765399517721,99.5241,140.63,140.57,3.32]
[1765399517928,99.5404,140.61,140.56,3.3716152]
[1765399518132,159.4041,140.63,140.56,3.3716152]
[1765399518524,99.5318,140.62,140.56,3.3716152]
[1765399518831,0.04476771,140.6,140.56,3.3716152]
[1765399519430,0.00476771,140.6,140.56,3.3716152]
[1765399524632,99.4977,140.67,140.56,3.3716152]
[1765399524831,99.4977,140.67,140.56,3.32]
[1765399525228,99.4977,140.67,140.58,3.32]
[1765399525622,99.513,140.65,140.58,3.32]
[1765399525828,0.04972284,140.64,140.61,0.04930282]
[1765399526837,5.44561425,140.64,140.61,0.04930282]
[1765399527028,6.3983,140.63,140.61,3.36930282]
[1765399527337,0.04972284,140.64,140.61,3.36930282]
[1765399531342,0.04972284,140.64,140.61,0.04930282]
[1765399531544,6.3981,140.63,140.61,0.04930282]
[1765399531740,5.39589141,140.63,140.55,3.32]
[1765399532442,5.39589141,140.66,140.56,3.32]
[1765399532631,0.04476752,140.62,140.6,0.04814298]
[1765399532831,0.04476752,140.62,140.6,3.36814298]
[1765399534140,6.44316752,140.62,140.6,0.04814298]
[1765399534439,6.44316752,140.62,140.6,3.06814298]
[1765399534636,6.44316752,140.62,140.6,0.04814298]
[1765399536440,0.04476752,140.62,140.6,3.06814298]
[1765399537536,0.04476752,140.62,140.6,0.04814298]
[1765399537736,0.04476752,140.62,140.6,3.06814298]
[1765399538245,6.44316752,140.62,140.6,0.04814298]
[1765399539643,6.44316752,140.62,140.6,3.06814298]
[1765399540740,0.04476752,140.62,140.6,3.06814298]
[1765399541246,5.39589141,140.69,140.6,3.06814298]
[1765399541446,5.39589141,140.69,140.6,3.02]
[1765399542339,0.05325682,140.66,140.63,3.067797]
[1765399545045,0.05325682,140.66,140.63,0.047797]
[1765399545639,6.3973,140.65,140.63,0.047797]
[1765399545944,99.5262,140.63,140.54,11.51923]
[1765399546145,5.39589141,140.61,140.55,3.02]
[1765399546846,6.4499223,140.59,140.57,3.07176241]
[1765399547148,0.0501223,140.59,140.57,3.07176241]
[1765399547549,0.0501223,140.59,140.57,0.05176241]
[1765399548749,6.4499223,140.59,140.57,0.05176241]
[1765399548944,5.39589141,140.58,140.57,0.05176241]
[1765399551038,5.39589141,140.58,140.57,3.07176241]
[1765399551246,5.39589141,140.64,140.57,3.07176241]
[1765399551948,104.91569141,140.64,140.57,3.07176241]
[1765399552146,99.5246,140.63,140.57,3.07176241]
[1765399552345,104.98205369,140.61,140.57,0.05176241]
[1765399552741,6.3999,140.59,140.57,0.05176241]
[1765399557152,5.39589141,140.58,140.51,8.49923]
[1765399557358,5.39589141,140.55,140.49,8.49923]
[1765399557561,99.5887,140.54,140.48,11.51923]
[1765399557768,6.4044,140.49,140.47,3.02]
[1765399557949,105.02309141,140.49,140.42,11.51923]
[1765399558145,105.02309141,140.49,140.42,3.02]
[1765399558146,99.6304,140.48,140.42,3.02]
[1765399558351,6.45567166,140.46,140.44,0.0465965]
[1765399558568,0.04987166,140.46,140.44,3.0665965]
[1765399559459,0.04987166,140.46,140.44,0.0465965]
[1765399560051,0.04987166,140.46,140.44,3.0665965]
[1765399560260,0.04987166,140.46,140.44,0.0465965]
[1765399560556,0.04987166,140.46,140.44,3.0665965]
[1765399561152,104.97849141,140.55,140.45,3.02]
[1765399561454,104.97849141,140.55,140.46,3.02]
[1765399561659,99.5919,140.54,140.46,3.02]
[1765399562248,0.04960744,140.51,140.49,0.05372135]
[1765399562457,0.04960744,140.51,140.49,3.07372135]
[1765399562954,5.39589141,140.58,140.5,3.02]
[1765399563952,0.05124356,140.55,140.53,0.04635231]
[1765399564353,0.05124356,140.55,140.53,3.17635231]
[1765399565061,104.91299141,140.64,140.54,3.13]
[1765399565358,5.39589141,140.64,140.55,3.13]
[1765399565658,11.79349141,140.64,140.56,3.13]
[1765399565860,104.91629141,140.64,140.56,3.13]
[1765399566048,104.91629141,140.64,140.59,0.04953014]
[1765399566254,99.546,140.6,140.52,9.52627031]
[1765399566555,99.546,140.6,140.53,3.13]
[1765399566862,6.4005,140.58,140.53,3.13]
[1765399567361,0.05365962,140.57,140.54,3.18233152]
[1765399568259,159.4562,140.62,140.54,3.18233152]
[1765399568260,104.91629141,140.64,140.54,3.18233152]
[1765399568459,5.39589141,140.64,140.57,3.13]
[1765399568659,159.4248,140.66,140.57,3.13]
[1765399569065,6.3977,140.64,140.57,3.13]
[1765399569263,120.28019167,140.7,140.6,3.13]
[1765399569264,104.87199141,140.7,140.6,3.13]
[1765399569560,104.87199141,140.7,140.64,0.04991776]
[1765399569762,6.3959,140.68,140.64,3.17991776]
[1765399570258,104.87199141,140.7,140.64,3.17991776]
[1765399570259,6.395,140.7,140.64,3.17991776]
[1765399570664,99.4624,140.72,140.64,3.17991776]
[1765399571256,6.3944,140.71,140.64,3.17991776]
[1765399571464,6.3944,140.71,140.67,3.13]
[1765399572458,5.39589141,140.76,140.67,3.13]
[1765399572667,5.39589141,140.76,140.7,3.17832081]
[1765399572861,99.4311,140.77,140.7,3.17832081]
[1765399573059,99.4397,140.75,140.7,3.17832081]
[1765399573267,99.4397,140.75,140.7,0.04832081]
[1765399573268,5.39589141,140.73,140.7,0.04832081]
[1765399573568,6.3942,140.72,140.7,0.04832081]
[1765399573968,6.3942,140.72,140.66,3.13]
[1765399573969,99.4636,140.72,140.62,3.13]
[1765399574868,6.395,140.7,140.62,3.13]
[1765399575069,0.04607726,140.67,140.65,3.1776454]
[1765399575272,0.04832081,140.67,140.65,3.1776454]
[1765399576163,99.4357,140.76,140.65,4.5976454]
[1765399576367,99.4357,140.76,140.66,3.13]
[1765399576769,99.451,140.74,140.66,3.13]
[1765399577067,99.451,140.74,140.69,0.04912721]
[1765399577268,99.4395,140.75,140.69,0.04912721]
[1765399577269,6.3918,140.77,140.7,3.13]
[1765399577471,6.3918,140.77,140.73,3.13]
[1765399577669,99.4208,140.78,140.72,0.04601803]
[1765399577967,99.4405,140.75,140.72,0.04601803]
[1765399578168,104.82859141,140.76,140.72,0.04601803]
[1765399578367,5.39589141,140.76,140.72,0.04601803]
[1765399578561,5.39589141,140.79,140.72,3.17601803]
[1765399578965,104.78809141,140.82,140.72,3.17601803]
[1765399579272,104.78809141,140.82,140.76,0.05465585]
[1765399579566,6.3904,140.8,140.76,3.18465585]
[1765399579764,5.39589141,140.82,140.76,3.18465585]
[1765399580469,5.39589141,140.82,140.76,0.05465585]
[1765399581776,11.78539141,140.82,140.76,0.05465585]
[1765399583172,59.9,140.83,140.76,3.18465585]
[1765399583366,6.3886,140.84,140.76,3.18465585]
[1765399583872,6.3891,140.83,140.76,3.18465585]
[1765399584075,6.3891,140.83,140.78,0.05050729]
[1765399584675,5.39589141,140.84,140.78,0.05050729]
[1765399584880,5.39589141,140.81,140.78,0.05050729]
[1765399585167,11.78459141,140.84,140.78,3.18050729]
[1765399586065,5.39589141,140.85,140.78,3.18050729]
[1765399586266,5.39589141,140.89,140.78,3.18050729]
[1765399586461,5.39589141,140.89,140.82,0.04493225]
[1765399586667,6.386,140.9,140.82,3.17493225]
[1765399586867,69.2185609,140.91,140.82,3.17493225]
[1765399587071,69.2185609,140.91,140.85,0.05207998]
[1765399587370,108.7129609,140.87,140.78,3.13]
[1765399587565,9.3585609,140.87,140.78,3.13]
[1765399588460,0.04804487,140.84,140.82,3.13]
[1765399588766,9.3585609,140.9,140.82,3.13]
[1765399589380,108.6711609,140.93,140.82,3.13]
[1765399589673,6.385,140.92,140.82,3.13]
[1765399589869,6.385,140.92,140.86,3.17849006]
[1765399590274,108.6740609,140.93,140.86,0.04849006]
[1765399590471,99.3192,140.92,140.86,0.04849006]
[1765399590669,108.6740609,140.93,140.86,0.04849006]
[1765399591168,6.385,140.92,140.86,3.17849006]
[1765399591568,9.3585609,140.93,140.86,3.17849006]
[1765399591973,6.3856,140.91,140.86,3.17849006]
[1765399592271,9.3585609,140.93,140.86,3.17849006]
[1765399592475,59.86,140.95,140.86,3.17849006]
[1765399592768,59.86,140.95,140.8,99.4008]
[1765399592769,297.944,140.93,140.8,3.13]
[1765399592970,9.3585609,140.9,140.8,3.13]
[1765399593172,15.7443609,140.9,140.81,3.13]
[1765399593372,9.3585609,140.9,140.81,3.13]
[1765399593763,6.3855,140.91,140.84,3.18075379]
[1765399593967,6.3855,140.91,140.84,3.13]
[1765399594281,0.04546221,140.89,140.86,0.05075235]
[1765399594874,6.3868,140.88,140.86,0.05075235]
[1765399595763,0.04546221,140.89,140.86,0.05075235]
[1765399595968,99.38976221,140.89,140.86,0.05075235]
[1765399596469,6.3867,140.88,140.86,0.05075235]
[1765399597376,6.3867,140.88,140.75,3.29]
[1765399597377,99.3707,140.85,140.75,3.29]
[1765399597870,6.3894,140.82,140.75,3.29]
[1765399598076,99.4045,140.8,140.7,21.494597]
[1765399598278,0.04728303,140.76,140.74,0.05275846]
[1765399599176,6.43958303,140.76,140.74,0.05275846]
[1765399599879,0.04728303,140.76,140.74,3.34275846]
[1765399600977,168.5640609,140.83,140.74,3.34275846]
[1765399601169,108.7440609,140.83,140.74,3.29]
[1765399601369,6.3899,140.81,140.74,3.29]
[1765399601980,0.05294889,140.79,140.76,3.3425857]
[1765399603180,6.3891,140.83,140.76,3.3425857]
[1765399604985,6.3891,140.83,140.77,3.29]
[1765399605872,108.7217609,140.86,140.77,3.29]
[1765399606078,6.3895,140.82,140.8,0.04870612]
[1765399606476,6.3886,140.84,140.8,3.33870612]
[1765399606676,6.3886,140.84,140.8,0.04870612]
[1765399606873,99.3702,140.85,140.8,0.04870612]
[1765399607179,6.3895,140.82,140.8,0.04870612]
[1765399608178,6.3887,140.84,140.8,0.04870612]
[1765399608677,99.3702,140.85,140.8,0.04870612]
[1765399609184,99.3715,140.85,140.8,0.04870612]
[1765399609688,6.3893,140.82,140.8,0.04870612]
[1765399610078,99.3715,140.85,140.8,0.04870612]
[1765399610576,6.389,140.83,140.8,0.04870612]
[1765399611175,6.3894,140.82,140.8,0.04870612]
[1765399612994,9.3585609,140.83,140.8,0.04870612]
[1765399614589,15.7474609,140.83,140.8,0.04870612]
[1765399614980,9.3585609,140.83,140.8,0.04870612]
[1765399615586,6.3894,140.82,140.8,0.04870612]
[1765399616883,6.3907,140.79,140.74,63.51]
[1765399617286,6.3892,140.83,140.75,3.29]
[1765399617485,6.3892,140.83,140.76,3.29]
[1765399617995,0.05040798,140.81,140.79,3.29]
[1765399618487,9.3585609,140.89,140.79,3.29]
[1765399618994,108.7026609,140.89,140.79,3.29]
[1765399619384,108.7026609,140.89,140.83,0.05044112]
[1765399619985,6.3875,140.86,140.83,0.05044112]
[1765399620199,99.3483,140.88,140.83,0.05044112]
[1765399620490,9.3585609,140.89,140.83,0.05044112]
[1765399620696,108.7031609,140.89,140.83,0.05044112]
[1765399620886,99.3545,140.87,140.83,0.05044112]
[1765399621192,6.388,140.85,140.83,0.05044112]
[1765399621391,99.3916,140.82,140.75,6.39627031]
[1765399621584,99.4193,140.78,140.71,9.68627031]
[1765399621786,99.447,140.74,140.69,6.39627031]
[1765399621982,168.6455609,140.74,140.65,6.39627031]
[1765399622189,168.6455609,140.74,140.63,3.29]
[1765399622190,6.3945,140.71,140.64,9.68627031]
[1765399622388,0.0485327,140.69,140.66,0.04554415]
[1765399625999,0.0485327,140.69,140.66,3.10554415]
[1765399626300,0.0485327,140.69,140.66,0.04554415]
[1765399627702,9.3585609,140.68,140.58,9.45627031]
[1765399628006,99.4965,140.67,140.58,3.06]
[1765399628395,6.3963,140.67,140.58,3.06]
[1765399628607,168.6909609,140.68,140.58,3.06]
[1765399628814,0.04727898,140.64,140.62,0.05455602]
[1765399629507,99.5473,140.6,140.53,6.39627031]
[1765399629816,6.4001,140.59,140.5,3.06]
[1765399630516,0.05180712,140.56,140.53,0.0539561]
[1765399630808,99.5807,140.55,140.45,3.27]
[1765399631000,99.5779,140.56,140.45,3.27]
[1765399631205,108.9284609,140.57,140.45,3.27]
[1765399631406,59.86,140.56,140.45,3.27]
[1765399631606,0.05414216,140.52,140.49,3.31979685]
[1765399632124,0.05414216,140.52,140.49,0.04979685]
[1765399633420,6.45754216,140.52,140.49,0.04979685]
[1765399634523,0.05414216,140.52,140.49,0.04979685]
[1765399635411,99.6093,140.51,140.49,0.04979685]
[1765399635613,99.6093,140.51,140.41,63.53]
[1765399635614,108.9678609,140.51,140.41,63.53]
[1765399635918,59.9,140.5,140.41,63.53]
[1765399636124,66.3043,140.5,140.42,3.27]
[1765399636724,0.04612012,140.47,140.45,0.05125019]
[1765399637716,0.04612012,140.47,140.45,3.32125019]
[1765399637920,0.04612012,140.47,140.45,0.05125019]
[1765399639730,6.45162012,140.47,140.45,0.05125019]
[1765399640629,6.45162012,140.47,140.37,6.4097]
[1765399640630,159.5852,140.46,140.37,3.27]
[1765399640813,99.6745,140.42,140.33,63.59]
[1765399641119,99.6806,140.41,140.34,3.27]
[1765399641312,99.6806,140.41,140.27,199.5512]
[1765399641313,99.6945,140.39,140.31,3.27]
[1765399641519,0.05313932,140.36,140.34,0.0479979]
[1765399641915,99.76863932,140.36,140.27,3.27]
[1765399642121,99.7229,140.35,140.27,3.27]
[1765399642328,59.94,140.34,140.27,3.27]
[1765399642727,6.4125,140.32,140.22,9.6865]
[1765399643031,0.04937997,140.28,140.26,0.05342255]
[1765399643325,0.04716367,140.28,140.26,0.05342255]
[1765399644121,6.46116367,140.28,140.26,0.05342255]
[1765399644424,0.04716367,140.28,140.26,3.32342255]
[1765399644632,0.04716367,140.28,140.26,0.05342255]
[1765399644820,0.04716367,140.28,140.26,3.32342255]
[1765399645020,0.04716367,140.28,140.26,0.05342255]
[1765399645224,6.46136367,140.28,140.26,0.05342255]
[1765399646528,6.46136367,140.28,140.21,60.34]
[1765399646728,6.46136367,140.28,140.19,3.27]
[1765399647028,6.4142,140.28,140.19,3.27]
[1765399647428,0.04821282,140.25,140.22,0.04793854]
[1765399648130,99.8022,140.24,140.22,0.04793854]
[1765399648430,99.8022,140.24,140.13,3.27001255]
[1765399648431,99.8235,140.21,140.13,3.27001255]
[1765399648629,99.7957,140.25,140.13,3.27001255]
[1765399648837,5.42528014,140.25,140.14,6.42]
[1765399649035,6.4149,140.26,140.14,6.42]
[1765399649036,6.4149,140.26,140.16,3.27]
[1765399649226,0.04809104,140.22,140.2,0.05394632]
[1765399649629,0.04809104,140.22,140.2,3.32394632]
[1765399649932,0.04809104,140.22,140.2,0.05394632]
[1765399650632,17.0687574,140.66,140.2,0.05394632]
[1765399650633,5.42528014,140.29,140.2,3.32394632]
[1765399650832,60.02,140.3,140.2,3.27]
[1765399651019,60.02,140.3,140.21,3.27]
[1765399651226,66.433,140.3,140.21,3.27]
[1765399651531,159.7823,140.3,140.21,3.27]
[1765399651725,0.04518109,140.27,140.25,3.27]
[1765399651926,0.04518109,140.27,140.24,0.05477462]
[1765399652138,99.82478109,140.27,140.24,0.05477462]
[1765399652324,6.4151,140.26,140.24,0.05477462]
[1765399653929,106.2026,140.26,140.24,0.05477462]
[1765399654336,106.2026,140.26,140.17,3.31]
[1765399654337,6.416,140.24,140.17,3.31]
[1765399654834,6.4165,140.23,140.17,3.31]
[1765399655337,0.05130969,140.21,140.19,0.04542461]
[1765399655726,0.05130969,140.21,140.19,3.35542461]
[1765399657535,0.05130969,140.21,140.19,0.04542461]
[1765399658037,0.05130969,140.21,140.13,1.255e-05]
[1765399658038,99.8294,140.2,140.13,1.255e-05]
[1765399658339,65.46528014,140.22,140.13,1.255e-05]
[1765399658726,60.04,140.22,140.13,1.255e-05]
[1765399658936,0.0461862,140.19,140.16,3.36025165]
[1765399659928,0.0461862,140.19,140.16,0.05025165]
[1765399661238,0.0461862,140.19,140.16,3.36025165]
[1765399661435,0.0461862,140.19,140.16,0.05025165]
[1765399661936,6.4187,140.18,140.16,0.05025165]
[1765399662328,0.0461862,140.19,140.16,3.36025165]
[1765399662733,0.0461862,140.19,140.16,0.05025165]
[1765399663331,6.4187,140.18,140.16,0.05025165]
[1765399664024,105.31166634,140.19,140.13,1.255e-05]
[1765399664228,99.883,140.13,140.06,3.31]
[1765399664425,165.36278014,140.17,140.06,3.31]
[1765399664629,99.8741,140.14,140.06,3.31]
[1765399665033,6.4223,140.1,140.06,3.31]
[1765399665341,0.05300613,140.11,140.09,0.04740644]
[1765399665524,0.05300613,140.11,140.05,3.31]
[1765399665730,99.9549042,140.09,140.07,0.04676493]
[1765399665937,99.9549042,140.09,140.01,3.31]
[1765399666127,99.9078,140.09,140.01,3.31]
[1765399666329,6.4233,140.08,140.01,3.31]
[1765399666530,99.904,140.1,140.01,3.31]
[1765399666730,6.4246,140.05,140.01,63.79]
[1765399666932,0.04813797,140.04,140.02,3.36361241]
[1765399667335,6.47323797,140.04,140.02,0.05361241]
[1765399667635,6.47323797,140.04,139.94,3.31]
[1765399667636,105.42231811,140.04,139.94,3.31]
[1765399667832,6.428,139.98,139.93,3.31]
[1765399668429,111.82518014,140.0,139.93,3.31]
[1765399668627,0.04726624,139.98,139.95,0.05440705]
[1765399668941,6.47526624,139.98,139.95,0.05440705]
[1765399669528,0.04726624,139.98,139.95,3.36440705]
[1765399669740,5.42528014,140.06,139.97,3.31]
[1765399670337,6.4241,140.06,139.97,3.31]
[1765399670533,5.42528014,140.05,139.97,3.31]
[1765399670735,0.05299102,140.02,140.0,0.04988543]
[1765399671033,0.05299102,140.02,140.0,3.35988543]
[1765399671434,0.05299102,140.02,140.0,0.04988543]
[1765399673333,106.43689102,140.02,140.0,0.04988543]
[1765399673534,106.43689102,140.02,139.92,3.31]
[1765399673535,99.9656,140.01,139.92,3.31]
[1765399673734,5.42528014,140.02,139.92,3.31]
[1765399673937,105.38598014,140.02,139.92,3.31]
[1765399674442,0.04833258,139.98,139.96,0.05058906]
[1765399675237,99.9938,139.97,139.88,3.31]
[1765399675440,6.4307,139.92,139.88,3.31]
[1765399675751,6.4307,139.92,139.84,3.31]
[1765399676242,160.1338,139.97,139.86,3.31]
[1765399676545,0.04989327,139.93,139.86,3.31]
[1765399677538,0.04989327,139.93,139.88,3.31]
[1765399678435,5.42528014,140.0,139.89,3.31]
[1765399678635,105.40018014,140.0,139.89,3.31]
[1765399678847,6.428,139.98,139.9,60.54]
[1765399679045,99.9794,139.99,139.91,3.31]
[1765399679546,0.05173769,139.96,139.94,0.04805715]
[1765399679846,6.48053769,139.96,139.94,0.04805715]
[1765399680449,11.85498014,139.94,139.87,3.31]
[1765399680849,100.023,139.93,139.87,3.31]
[1765399681045,105.46498014,139.91,139.83,3.31]
[1765399681349,105.53698881,139.88,139.83,3.31]
[1765399681648,105.53698881,139.88,139.78,60.56]
[1765399681649,0.04890867,139.88,139.8,60.56]
[1765399681848,5.42528014,139.9,139.8,60.56]
[1765399681849,0.04691702,139.85,139.81,3.31]
[1765399682148,105.45088014,139.93,139.83,3.31]
[1765399682650,105.46888014,139.9,139.8,3.31]
[1765399682842,100.0749,139.86,139.77,4.39794939]
[1765399683152,5.42528014,139.81,139.77,3.1537147]
[1765399683344,100.1152,139.8,139.77,3.1537147]
[1765399683645,6.4381,139.76,139.68,85.62]
[1765399683852,6.4381,139.76,139.68,3.31]
[1765399684047,105.54768014,139.79,139.69,3.09]
[1765399684238,105.57048014,139.76,139.69,3.09]
[1765399684439,0.04665705,139.74,139.66,163.8831]
[1765399684645,0.05017047,139.71,139.67,3.09]
[1765399684849,0.05017047,139.71,139.67,109.7392]
[1765399685067,5.42528014,139.77,139.69,3.09]
[1765399685251,6.4364,139.79,139.69,3.09]
[1765399685453,6.4355,139.81,139.71,3.09]
[1765399685652,60.2,139.85,139.73,3.09]
[1765399685653,5.42528014,139.82,139.73,3.09]
[1765399685961,0.04764076,139.79,139.76,3.13945302]
[1765399686458,0.04764076,139.79,139.77,3.09]
[1765399686646,5.42528014,139.85,139.77,3.09]
[1765399686847,100.0648,139.88,139.77,3.09]
[1765399687047,5.42528014,139.89,139.78,3.09]
[1765399687258,6.4316,139.9,139.81,3.09]
[1765399687460,6.4316,139.9,139.83,3.09]
[1765399687655,0.05060464,139.88,139.85,3.14231394]
[1765399689057,0.05060464,139.88,139.85,0.05231394]
[1765399689463,0.05060464,139.88,139.85,3.17231394]
[1765399689759,105.44128014,139.94,139.85,3.17231394]
[1765399689959,5.42528014,139.94,139.85,3.12]
[1765399690151,5.42528014,139.94,139.86,3.12]
[1765399690356,105.44058014,139.94,139.86,3.12]
[1765399690663,100.011,139.95,139.77,100.1339]
[1765399690664,105.50832961,139.91,139.89,0.04831297]